[Event "Titled Tuesday Blitz February 07 Late 2023"]
[White "Bernat, David"]
[Black "Haydon, David L"]
[WhiteFideId "2099225"]
[BlackFideId "415405"]
[WhiteElo "1862"]
[BlackElo "2253"]
[Result "1/2-1/2"]
[Round "01"]
[TimeControl "180+2"]
[Date "2023.02.07"]
[WhiteClock "0:00:21"]
[BlackClock "0:00:19"]

1. c4 {[%clk 0:02:58]}  c6 {[%clk 0:02:59]} 2. e4 {[%clk 0:02:58]}  d5 {[%clk 0:02:59]} 3. cxd5 {[%clk 0:02:59]}  cxd5 {[%clk 0:02:58]} 4. exd5 {[%clk 0:03:00]}  Nf6 {[%clk 0:02:57]} 5. Nc3 {[%clk 0:03:01]}  Nxd5 {[%clk 0:02:57]} 6. Bc4 {[%clk 0:03:01]}  Nb6 {[%clk 0:02:56]} 7. Bb3 {[%clk 0:03:01]}  Nc6 {[%clk 0:02:56]} 8. Nf3 {[%clk 0:03:01]}  e6 {[%clk 0:02:56]} 9. d4 {[%clk 0:03:02]}  Be7 {[%clk 0:02:56]} 10. O-O {[%clk 0:03:02]}  O-O {[%clk 0:02:55]} 11. Bf4 {[%clk 0:03:03]}  Bf6 {[%clk 0:02:55]} 12. Be5 {[%clk 0:02:59]}  Na5 {[%clk 0:02:51]} 13. Bc2 {[%clk 0:02:59]}  Nac4 {[%clk 0:02:48]} 14. b3 {[%clk 0:02:54]}  Nxe5 {[%clk 0:02:47]} 15. dxe5 {[%clk 0:02:52]}  Be7 {[%clk 0:02:46]} 16. Qe2 {[%clk 0:02:42]}  Bd7 {[%clk 0:02:43]} 17. Rfd1 {[%clk 0:02:42]}  Qc7 {[%clk 0:02:38]} 18. Rac1 {[%clk 0:02:39]}  Bc6 {[%clk 0:02:35]} 19. Ne4 {[%clk 0:02:27]}  h6 {[%clk 0:02:33]} 20. Nd6 {[%clk 0:02:27]}  Rad8 {[%clk 0:02:01]} 21. Qd3 {[%clk 0:02:20]}  g6 {[%clk 0:02:00]} 22. Qd2 {[%clk 0:02:09]}  Kg7 {[%clk 0:01:56]} 23. Qa5 {[%clk 0:02:01]}  Qb8 {[%clk 0:01:41]} 24. Nd4 {[%clk 0:01:49]}  Bxd6 {[%clk 0:01:28]} 25. Nxc6 {[%clk 0:01:47]}  bxc6 {[%clk 0:01:26]} 26. exd6 {[%clk 0:01:47]}  Nd5 {[%clk 0:01:25]} 27. Be4 {[%clk 0:01:40]}  Rxd6 {[%clk 0:01:23]} 28. Bxd5 {[%clk 0:01:29]}  cxd5 {[%clk 0:01:22]} 29. Qc3+ {[%clk 0:01:27]}  Kg8 {[%clk 0:01:21]} 30. Qe3 {[%clk 0:01:24]}  Kh7 {[%clk 0:01:16]} 31. Qc5 {[%clk 0:01:18]}  Rd7 {[%clk 0:01:15]} 32. Rc2 {[%clk 0:01:14]}  Rfd8 {[%clk 0:01:15]} 33. Rdc1 {[%clk 0:01:14]}  Qd6 {[%clk 0:01:13]} 34. Qd4 {[%clk 0:01:07]}  Qa6 {[%clk 0:01:12]} 35. h4 {[%clk 0:01:01]}  Qb6 {[%clk 0:01:10]} 36. Qxb6 {[%clk 0:00:58]}  axb6 {[%clk 0:01:10]} 37. Rc6 {[%clk 0:00:58]}  Rb7 {[%clk 0:01:08]} 38. Kf1 {[%clk 0:00:54]}  Ra8 {[%clk 0:01:07]} 39. a4 {[%clk 0:00:54]}  Kg7 {[%clk 0:01:06]} 40. Rc7 {[%clk 0:00:53]}  Rab8 {[%clk 0:01:05]} 41. Ke2 {[%clk 0:00:53]}  Kf6 {[%clk 0:01:03]} 42. g4 {[%clk 0:00:52]}  Ke5 {[%clk 0:01:02]} 43. Ke3 {[%clk 0:00:52]}  g5 {[%clk 0:01:00]} 44. h5 {[%clk 0:00:46]}  Kd6 {[%clk 0:00:52]} 45. Rxb7 {[%clk 0:00:46]}  Rxb7 {[%clk 0:00:52]} 46. Rc8 {[%clk 0:00:46]}  f5 {[%clk 0:00:47]} 47. gxf5 {[%clk 0:00:43]}  exf5 {[%clk 0:00:46]} 48. Rh8 {[%clk 0:00:44]}  Ke5 {[%clk 0:00:44]} 49. Rxh6 {[%clk 0:00:42]}  f4+ {[%clk 0:00:44]} 50. Kd3 {[%clk 0:00:42]}  g4 {[%clk 0:00:39]} 51. Rg6 {[%clk 0:00:40]}  Kf5 {[%clk 0:00:39]} 52. Rd6 {[%clk 0:00:40]}  g3 {[%clk 0:00:32]} 53. fxg3 {[%clk 0:00:38]}  fxg3 {[%clk 0:00:31]} 54. Rg6 {[%clk 0:00:33]}  Kf4 {[%clk 0:00:28]} 55. h6 {[%clk 0:00:32]}  Kf3 {[%clk 0:00:25]} 56. Rg7 {[%clk 0:00:27]}  Rb8 {[%clk 0:00:21]} 57. h7 {[%clk 0:00:24]}  Rh8 {[%clk 0:00:19]} 58. Rf7+ {[%clk 0:00:22]}  Kg2 {[%clk 0:00:19]} 59. Kd4 {[%clk 0:00:17]}  Kh2 {[%clk 0:00:18]} 60. Rg7 {[%clk 0:00:17]}  g2 {[%clk 0:00:19]} 61. Kxd5 {[%clk 0:00:16]}  g1=Q {[%clk 0:00:17]} 62. Rxg1 {[%clk 0:00:17]}  Kxg1 {[%clk 0:00:17]} 63. b4 {[%clk 0:00:17]}  Rxh7 {[%clk 0:00:16]} 64. Kc6 {[%clk 0:00:17]}  Rh6+ {[%clk 0:00:16]} 65. Kb7 {[%clk 0:00:17]}  Kf2 {[%clk 0:00:17]} 66. a5 {[%clk 0:00:18]}  bxa5 {[%clk 0:00:17]} 67. bxa5 {[%clk 0:00:19]}  Ke3 {[%clk 0:00:18]} 68. a6 {[%clk 0:00:19]}  Rh7+ {[%clk 0:00:18]} 69. Kb8 {[%clk 0:00:19]}  Kd4 {[%clk 0:00:18]} 70. a7 {[%clk 0:00:20]}  Rh8+ {[%clk 0:00:19]} 71. Kb7 {[%clk 0:00:20]}  Kc5 {[%clk 0:00:19]} 72. a8=Q {[%clk 0:00:20]}  Rxa8 {[%clk 0:00:19]} 73. Kxa8 {[%clk 0:00:21]} 1/2-1/2


[Site "https://www.chess.com"]

[Event "Titled Tuesday Blitz February 07 Late 2023"]
[White "Kalogeris, Ioannis"]
[Black "Todev, Simeon"]
[WhiteFideId "4239563"]
[BlackFideId "2925133"]
[WhiteElo "2423"]
[BlackElo "2033"]
[Result "1-0"]
[Round "01"]
[TimeControl "180+2"]
[Date "2023.02.07"]
[WhiteClock "0:01:10"]
[BlackClock "0:00:04"]

1. e4 {[%clk 0:02:58]}  c5 {[%clk 0:02:57]} 2. Nf3 {[%clk 0:02:58]}  Nc6 {[%clk 0:02:22]} 3. Nc3 {[%clk 0:02:53]}  e6 {[%clk 0:02:22]} 4. Bb5 {[%clk 0:02:53]}  d5 {[%clk 0:02:22]} 5. exd5 {[%clk 0:02:47]}  exd5 {[%clk 0:02:22]} 6. O-O {[%clk 0:02:43]}  Be6 {[%clk 0:02:21]} 7. d4 {[%clk 0:02:41]}  Nf6 {[%clk 0:02:11]} 8. Re1 {[%clk 0:02:41]}  Be7 {[%clk 0:02:06]} 9. dxc5 {[%clk 0:02:40]}  O-O {[%clk 0:02:01]} 10. Bxc6 {[%clk 0:02:37]}  bxc6 {[%clk 0:01:57]} 11. Be3 {[%clk 0:02:31]}  Rb8 {[%clk 0:01:51]} 12. Ne5 {[%clk 0:02:29]}  Qc7 {[%clk 0:01:47]} 13. Bf4 {[%clk 0:02:23]}  Bxc5 {[%clk 0:01:47]} 14. Ng6 {[%clk 0:01:59]}  Qb6 {[%clk 0:01:36]} 15. Nxf8 {[%clk 0:01:54]}  Bxf2+ {[%clk 0:01:32]} 16. Kh1 {[%clk 0:01:49]}  Bxe1 {[%clk 0:01:16]} 17. Nxe6 {[%clk 0:01:47]}  Bxc3 {[%clk 0:01:01]} 18. bxc3 {[%clk 0:01:42]}  Ne4 {[%clk 0:00:46]} 19. Qd4 {[%clk 0:01:27]}  Qb1+ {[%clk 0:00:41]} 20. Bc1 {[%clk 0:01:27]}  Nf6 {[%clk 0:00:17]} 21. Rxb1 {[%clk 0:01:26]}  Rxb1 {[%clk 0:00:18]} 22. Qe3 {[%clk 0:01:21]}  fxe6 {[%clk 0:00:18]} 23. h3 {[%clk 0:01:18]}  e5 {[%clk 0:00:18]} 24. Kh2 {[%clk 0:01:16]}  d4 {[%clk 0:00:17]} 25. cxd4 {[%clk 0:01:16]}  exd4 {[%clk 0:00:18]} 26. Qe6+ {[%clk 0:01:17]}  Kh8 {[%clk 0:00:14]} 27. Bg5 {[%clk 0:01:15]}  Ng8 {[%clk 0:00:14]} 28. Qxc6 {[%clk 0:01:15]}  Rb2 {[%clk 0:00:14]} 29. Qc4 {[%clk 0:01:14]}  h6 {[%clk 0:00:13]} 30. Bd8 {[%clk 0:01:14]}  Rb8 {[%clk 0:00:08]} 31. Qxd4 {[%clk 0:01:14]}  Rc8 {[%clk 0:00:06]} 32. c4 {[%clk 0:01:14]}  Kh7 {[%clk 0:00:06]} 33. c5 {[%clk 0:01:13]}  Kg6 {[%clk 0:00:06]} 34. c6 {[%clk 0:01:13]}  Kf7 {[%clk 0:00:07]} 35. Qd7+ {[%clk 0:01:12]}  Ne7 {[%clk 0:00:04]} 36. Qxe7+ {[%clk 0:01:13]}  Kg8 {[%clk 0:00:04]} 37. Qe6+ {[%clk 0:01:13]}  Kh7 {[%clk 0:00:04]} 38. Qxc8 {[%clk 0:01:14]}  g6 {[%clk 0:00:04]} 39. Qd7+ {[%clk 0:01:10]} 1-0


[Site "https://www.chess.com"]

[Event "Titled Tuesday Blitz February 07 Late 2023"]
[White "Jenkins, Drake"]
[Black "Averjanov, Alexey"]
[WhiteFideId "2022397"]
[BlackFideId "14109867"]
[WhiteElo "2130"]
[BlackElo "2399"]
[Result "1-0"]
[Round "01"]
[TimeControl "180+2"]
[Date "2023.02.07"]
[WhiteClock "0:00:02"]
[BlackClock "0:01:03"]

1. Nf3 {[%clk 0:02:59]}  d5 {[%clk 0:02:58]} 2. c4 {[%clk 0:02:59]}  e6 {[%clk 0:02:53]} 3. g3 {[%clk 0:02:58]}  Nf6 {[%clk 0:02:53]} 4. Bg2 {[%clk 0:02:59]}  Be7 {[%clk 0:02:54]} 5. O-O {[%clk 0:03:00]}  O-O {[%clk 0:02:54]} 6. d3 {[%clk 0:03:00]}  b6 {[%clk 0:02:54]} 7. Nbd2 {[%clk 0:03:01]}  Bb7 {[%clk 0:02:54]} 8. Rb1 {[%clk 0:03:01]}  Nbd7 {[%clk 0:02:54]} 9. b4 {[%clk 0:03:01]}  c5 {[%clk 0:02:51]} 10. b5 {[%clk 0:03:01]}  a6 {[%clk 0:02:49]} 11. a4 {[%clk 0:03:00]}  axb5 {[%clk 0:02:49]} 12. axb5 {[%clk 0:02:59]}  d4 {[%clk 0:02:49]} 13. Re1 {[%clk 0:02:55]}  Qc7 {[%clk 0:02:49]} 14. Nf1 {[%clk 0:02:55]}  e5 {[%clk 0:02:48]} 15. e3 {[%clk 0:02:52]}  Bd6 {[%clk 0:02:44]} 16. exd4 {[%clk 0:02:51]}  cxd4 {[%clk 0:02:39]} 17. Bb2 {[%clk 0:02:21]}  Nc5 {[%clk 0:02:39]} 18. Qc2 {[%clk 0:02:08]}  e4 {[%clk 0:02:29]} 19. Nxd4 {[%clk 0:02:02]}  exd3 {[%clk 0:02:29]} 20. Qd2 {[%clk 0:01:44]}  Bxg2 {[%clk 0:02:29]} 21. Kxg2 {[%clk 0:01:44]}  Ra2 {[%clk 0:02:27]} 22. Nc6 {[%clk 0:01:33]}  Nfe4 {[%clk 0:02:21]} 23. Rxe4 {[%clk 0:01:21]}  Nxe4 {[%clk 0:02:21]} 24. Qxd3 {[%clk 0:01:22]}  Nc5 {[%clk 0:02:16]} 25. Qd4 {[%clk 0:01:15]}  Ne6 {[%clk 0:02:16]} 26. Qg4 {[%clk 0:01:11]}  Ba3 {[%clk 0:02:04]} 27. Be5 {[%clk 0:01:02]}  Bd6 {[%clk 0:02:04]} 28. Bb2 {[%clk 0:00:45]}  Bc5 {[%clk 0:02:04]} 29. Nd2 {[%clk 0:00:37]}  Qd7 {[%clk 0:01:56]} 30. Qe2 {[%clk 0:00:23]}  Re8 {[%clk 0:01:47]} 31. Ne4 {[%clk 0:00:11]}  Nd4 {[%clk 0:01:38]} 32. Qd3 {[%clk 0:00:11]}  Qe6 {[%clk 0:01:18]} 33. Ng5 {[%clk 0:00:04]}  Qg6 {[%clk 0:01:07]} 34. Qxg6 {[%clk 0:00:02]}  hxg6 {[%clk 0:01:08]} 35. Bxd4 {[%clk 0:00:02]}  Bxd4 {[%clk 0:01:03]} 36. Nxd4 {[%clk 0:00:02]}  Rd8 {[%clk 0:01:01]} 37. Nc6 {[%clk 0:00:02]}  Rdd2 {[%clk 0:01:01]} 38. Ne4 {[%clk 0:00:02]}  Rxf2+ {[%clk 0:01:01]} 39. Nxf2 {[%clk 0:00:02]}  Rc2 {[%clk 0:01:02]} 40. c5 {[%clk 0:00:03]}  Rxc5 {[%clk 0:01:02]} 41. Kf3 {[%clk 0:00:02]}  Rc3+ {[%clk 0:01:01]} 42. Ke2 {[%clk 0:00:02]}  Rc2+ {[%clk 0:01:02]} 43. Kf1 {[%clk 0:00:02]}  Rc3 {[%clk 0:01:02]} 44. Rb2 {[%clk 0:00:02]}  Rc1+ {[%clk 0:01:02]} 45. Kg2 {[%clk 0:00:03]}  Ra1 {[%clk 0:01:03]} 46. Nd4 {[%clk 0:00:03]}  Ra3 {[%clk 0:01:03]} 47. Nc2 {[%clk 0:00:03]}  Ra2 {[%clk 0:01:03]} 48. Rxa2 {[%clk 0:00:02]} 1-0


[Site "https://www.chess.com"]

[Event "Titled Tuesday Blitz February 07 Late 2023"]
[White "Di Berardino, Diego Rafael"]
[Black "Olsson, William"]
[WhiteFideId "2105446"]
[BlackFideId "1741721"]
[WhiteElo "2479"]
[BlackElo "2355"]
[Result "1-0"]
[Round "01"]
[TimeControl "180+2"]
[Date "2023.02.07"]
[WhiteClock "0:00:04"]
[BlackClock "0:00:11"]

1. e4 {[%clk 0:02:58]}  c5 {[%clk 0:03:00]} 2. Nf3 {[%clk 0:02:52]}  d6 {[%clk 0:03:00]} 3. d4 {[%clk 0:02:51]}  cxd4 {[%clk 0:03:01]} 4. Nxd4 {[%clk 0:02:51]}  Nf6 {[%clk 0:03:02]} 5. Nc3 {[%clk 0:02:52]}  g6 {[%clk 0:03:02]} 6. Be3 {[%clk 0:02:50]}  Bg7 {[%clk 0:03:02]} 7. f3 {[%clk 0:02:50]}  O-O {[%clk 0:03:03]} 8. Qd2 {[%clk 0:02:50]}  Nc6 {[%clk 0:03:04]} 9. O-O-O {[%clk 0:02:48]}  Bd7 {[%clk 0:03:04]} 10. g4 {[%clk 0:02:41]}  Rc8 {[%clk 0:03:01]} 11. h4 {[%clk 0:02:40]}  h5 {[%clk 0:03:00]} 12. g5 {[%clk 0:02:29]}  Ne8 {[%clk 0:02:58]} 13. Kb1 {[%clk 0:02:28]}  a6 {[%clk 0:02:52]} 14. Nd5 {[%clk 0:02:12]}  Nc7 {[%clk 0:02:42]} 15. Nb6 {[%clk 0:01:56]}  Rb8 {[%clk 0:02:40]} 16. f4 {[%clk 0:01:42]}  Bg4 {[%clk 0:02:30]} 17. Be2 {[%clk 0:01:24]}  Nxd4 {[%clk 0:02:18]} 18. Bxg4 {[%clk 0:01:23]}  Ncb5 {[%clk 0:02:04]} 19. Nd7 {[%clk 0:01:08]}  hxg4 {[%clk 0:02:03]} 20. Nxb8 {[%clk 0:01:06]}  Qxb8 {[%clk 0:01:23]} 21. a4 {[%clk 0:00:47]}  Nf3 {[%clk 0:01:21]} 22. Qg2 {[%clk 0:00:45]}  Nbd4 {[%clk 0:01:10]} 23. Qxg4 {[%clk 0:00:44]}  e5 {[%clk 0:00:54]} 24. c3 {[%clk 0:00:35]}  exf4 {[%clk 0:00:46]} 25. Bxd4 {[%clk 0:00:34]}  Nxd4 {[%clk 0:00:45]} 26. cxd4 {[%clk 0:00:34]}  b5 {[%clk 0:00:45]} 27. h5 {[%clk 0:00:26]}  Qb7 {[%clk 0:00:30]} 28. Qxf4 {[%clk 0:00:22]}  gxh5 {[%clk 0:00:29]} 29. Rxh5 {[%clk 0:00:20]}  bxa4 {[%clk 0:00:28]} 30. Qf5 {[%clk 0:00:16]}  Rb8 {[%clk 0:00:27]} 31. Rd2 {[%clk 0:00:08]}  a3 {[%clk 0:00:20]} 32. g6 {[%clk 0:00:08]}  axb2 {[%clk 0:00:13]} 33. Qxf7+ {[%clk 0:00:08]}  Qxf7 {[%clk 0:00:13]} 34. gxf7+ {[%clk 0:00:08]}  Kxf7 {[%clk 0:00:14]} 35. Rxb2 {[%clk 0:00:08]}  Rxb2+ {[%clk 0:00:14]} 36. Kxb2 {[%clk 0:00:08]}  Bxd4+ {[%clk 0:00:14]} 37. Kc2 {[%clk 0:00:09]}  Be5 {[%clk 0:00:13]} 38. Rh7+ {[%clk 0:00:06]}  Kf6 {[%clk 0:00:13]} 39. Ra7 {[%clk 0:00:06]}  Bd4 {[%clk 0:00:12]} 40. Rxa6 {[%clk 0:00:04]}  Ke5 {[%clk 0:00:12]} 41. Kd3 {[%clk 0:00:03]}  Bc5 {[%clk 0:00:12]} 42. Ra5 {[%clk 0:00:03]}  Ke6 {[%clk 0:00:11]} 43. Kc4 {[%clk 0:00:02]}  Ke5 {[%clk 0:00:12]} 44. Kd3 {[%clk 0:00:03]}  Kf4 {[%clk 0:00:11]} 45. Ra8 {[%clk 0:00:03]}  Ke5 {[%clk 0:00:12]} 46. Re8+ {[%clk 0:00:03]}  Kf6 {[%clk 0:00:12]} 47. Kc4 {[%clk 0:00:03]}  Ba3 {[%clk 0:00:12]} 48. Kd5 {[%clk 0:00:03]}  Bb4 {[%clk 0:00:12]} 49. Re6+ {[%clk 0:00:03]}  Kg5 {[%clk 0:00:11]} 50. Rxd6 {[%clk 0:00:04]}  Kf4 {[%clk 0:00:12]} 51. e5 {[%clk 0:00:04]}  Bxd6 {[%clk 0:00:11]} 52. exd6 {[%clk 0:00:04]} 1-0


[Site "https://www.chess.com"]

[Event "Titled Tuesday Blitz February 07 Late 2023"]
[White "Martynov, Pavel"]
[Black "EdmundPlayer"]
[WhiteFideId "4101260"]
[WhiteElo "2414"]
[BlackElo "2275"]
[Result "1-0"]
[Round "01"]
[TimeControl "180+2"]
[Date "2023.02.07"]
[WhiteClock "0:01:33"]
[BlackClock "0:00:05"]

1. e4 {[%clk 0:02:58]}  e5 {[%clk 0:02:58]} 2. Nf3 {[%clk 0:02:57]}  Nc6 {[%clk 0:02:57]} 3. Bb5 {[%clk 0:02:57]}  a6 {[%clk 0:02:57]} 4. Ba4 {[%clk 0:02:57]}  Nf6 {[%clk 0:02:55]} 5. d3 {[%clk 0:02:58]}  b5 {[%clk 0:02:53]} 6. Bb3 {[%clk 0:02:58]}  Bc5 {[%clk 0:02:50]} 7. c3 {[%clk 0:02:58]}  d6 {[%clk 0:02:48]} 8. h3 {[%clk 0:02:57]}  h6 {[%clk 0:02:36]} 9. Nbd2 {[%clk 0:02:57]}  O-O {[%clk 0:02:33]} 10. Nf1 {[%clk 0:02:57]}  Bb7 {[%clk 0:02:20]} 11. Ng3 {[%clk 0:02:57]}  Ne7 {[%clk 0:02:11]} 12. Nh4 {[%clk 0:02:54]}  d5 {[%clk 0:01:55]} 13. Qf3 {[%clk 0:02:45]}  Nh7 {[%clk 0:01:03]} 14. O-O {[%clk 0:02:32]}  Kh8 {[%clk 0:00:28]} 15. a4 {[%clk 0:02:20]}  Qd7 {[%clk 0:00:23]} 16. Nhf5 {[%clk 0:02:12]}  Nxf5 {[%clk 0:00:21]} 17. Nxf5 {[%clk 0:02:12]}  Rad8 {[%clk 0:00:17]} 18. Qg3 {[%clk 0:01:59]}  f6 {[%clk 0:00:09]} 19. Nh4 {[%clk 0:01:56]}  Rfe8 {[%clk 0:00:05]} 20. axb5 {[%clk 0:01:45]}  axb5 {[%clk 0:00:05]} 21. Kh1 {[%clk 0:01:33]}  dxe4 {[%clk 0:00:05]} 22. Ng6# {[%clk 0:01:33]} 1-0


[Site "https://www.chess.com"]

[Event "Titled Tuesday Blitz February 07 Late 2023"]
[White "Schuster, Karsten"]
[Black "Romanchuk, Viktor"]
[WhiteFideId "4611071"]
[BlackFideId "14109271"]
[WhiteElo "2309"]
[BlackElo "2266"]
[Result "1/2-1/2"]
[Round "01"]
[TimeControl "180+2"]
[Date "2023.02.07"]
[WhiteClock "0:00:33"]
[BlackClock "0:00:10"]

1. d4 {[%clk 0:02:59]}  d5 {[%clk 0:02:59]} 2. c4 {[%clk 0:03:00]}  c6 {[%clk 0:02:58]} 3. cxd5 {[%clk 0:03:00]}  cxd5 {[%clk 0:02:59]} 4. Bf4 {[%clk 0:03:01]}  Nf6 {[%clk 0:02:59]} 5. Nc3 {[%clk 0:03:01]}  Nc6 {[%clk 0:02:59]} 6. e3 {[%clk 0:03:02]}  Bf5 {[%clk 0:02:57]} 7. Qb3 {[%clk 0:03:01]}  Na5 {[%clk 0:02:56]} 8. Qa4+ {[%clk 0:03:01]}  Bd7 {[%clk 0:02:57]} 9. Qc2 {[%clk 0:03:02]}  Rc8 {[%clk 0:02:56]} 10. Bd3 {[%clk 0:03:02]}  e6 {[%clk 0:02:56]} 11. Nf3 {[%clk 0:03:01]}  Bb4 {[%clk 0:02:57]} 12. O-O {[%clk 0:03:00]}  O-O {[%clk 0:02:57]} 13. Rfc1 {[%clk 0:03:00]}  a6 {[%clk 0:02:53]} 14. h3 {[%clk 0:02:57]}  Bxc3 {[%clk 0:02:49]} 15. bxc3 {[%clk 0:02:56]}  Bb5 {[%clk 0:02:49]} 16. Bxb5 {[%clk 0:02:49]}  axb5 {[%clk 0:02:48]} 17. a4 {[%clk 0:02:45]}  bxa4 {[%clk 0:02:36]} 18. Qxa4 {[%clk 0:02:45]}  Nc4 {[%clk 0:02:34]} 19. Ne5 {[%clk 0:02:44]}  Ne4 {[%clk 0:02:22]} 20. Nxc4 {[%clk 0:02:36]}  Rxc4 {[%clk 0:02:20]} 21. Qb3 {[%clk 0:02:32]}  Qc8 {[%clk 0:02:14]} 22. Ra3 {[%clk 0:02:31]}  Qc6 {[%clk 0:02:10]} 23. f3 {[%clk 0:02:31]}  Nf6 {[%clk 0:02:02]} 24. Rb1 {[%clk 0:02:26]}  h6 {[%clk 0:01:47]} 25. Qxb7 {[%clk 0:02:24]}  Rxc3 {[%clk 0:01:45]} 26. Qxc6 {[%clk 0:02:24]}  Rxc6 {[%clk 0:01:45]} 27. Rab3 {[%clk 0:02:22]}  Rfc8 {[%clk 0:01:41]} 28. Rb8 {[%clk 0:02:20]}  Nd7 {[%clk 0:01:39]} 29. Rxc8+ {[%clk 0:02:19]}  Rxc8 {[%clk 0:01:40]} 30. Rb7 {[%clk 0:02:19]}  Nf8 {[%clk 0:01:40]} 31. Rb8 {[%clk 0:02:18]}  Rxb8 {[%clk 0:01:39]} 32. Bxb8 {[%clk 0:02:18]}  Nd7 {[%clk 0:01:39]} 33. Bd6 {[%clk 0:02:17]}  h5 {[%clk 0:01:31]} 34. Kf2 {[%clk 0:02:12]}  f6 {[%clk 0:01:31]} 35. e4 {[%clk 0:02:12]}  Kf7 {[%clk 0:01:25]} 36. g4 {[%clk 0:02:12]}  hxg4 {[%clk 0:01:23]} 37. hxg4 {[%clk 0:02:12]}  Nb6 {[%clk 0:01:21]} 38. Bc5 {[%clk 0:02:10]}  Nc4 {[%clk 0:01:21]} 39. exd5 {[%clk 0:02:07]}  exd5 {[%clk 0:01:20]} 40. f4 {[%clk 0:02:07]}  Nd2 {[%clk 0:01:17]} 41. Ke3 {[%clk 0:02:05]}  Ne4 {[%clk 0:01:17]} 42. Bb4 {[%clk 0:02:03]}  f5 {[%clk 0:01:16]} 43. gxf5 {[%clk 0:01:59]}  Ng3 {[%clk 0:01:14]} 44. Kd3 {[%clk 0:01:52]}  Nxf5 {[%clk 0:01:12]} 45. Ba5 {[%clk 0:01:51]}  Ke6 {[%clk 0:01:10]} 46. Bc7 {[%clk 0:01:51]}  Ng3 {[%clk 0:01:04]} 47. Be5 {[%clk 0:01:50]}  g6 {[%clk 0:01:04]} 48. Ke3 {[%clk 0:01:49]}  Kf5 {[%clk 0:01:03]} 49. Kf3 {[%clk 0:01:48]}  Nf1 {[%clk 0:00:59]} 50. Ke2 {[%clk 0:01:45]}  Ng3+ {[%clk 0:00:57]} 51. Kf3 {[%clk 0:01:45]}  Ne4 {[%clk 0:00:58]} 52. Bb8 {[%clk 0:01:41]}  Nf6 {[%clk 0:00:55]} 53. Be5 {[%clk 0:01:16]}  Nd7 {[%clk 0:00:54]} 54. Bd6 {[%clk 0:01:15]}  Nb6 {[%clk 0:00:51]} 55. Be5 {[%clk 0:01:13]}  Nc4 {[%clk 0:00:50]} 56. Bc7 {[%clk 0:01:06]}  Na3 {[%clk 0:00:44]} 57. Be5 {[%clk 0:01:04]}  Nb5 {[%clk 0:00:43]} 58. Bg7 {[%clk 0:01:03]}  Nc7 {[%clk 0:00:41]} 59. Be5 {[%clk 0:01:02]}  Ne6 {[%clk 0:00:42]} 60. Kg3 {[%clk 0:01:00]}  Ke4 {[%clk 0:00:37]} 61. Kg4 {[%clk 0:01:00]}  Nxd4 {[%clk 0:00:36]} 62. Bc7 {[%clk 0:00:46]}  Ne6 {[%clk 0:00:34]} 63. Bd6 {[%clk 0:00:44]}  d4 {[%clk 0:00:34]} 64. Be5 {[%clk 0:00:40]}  d3 {[%clk 0:00:33]} 65. Bc3 {[%clk 0:00:40]}  Nxf4 {[%clk 0:00:31]} 66. Kg5 {[%clk 0:00:39]}  Nd5 {[%clk 0:00:22]} 67. Bd2 {[%clk 0:00:38]}  Ne7 {[%clk 0:00:11]} 68. Kf6 {[%clk 0:00:37]}  Kf3 {[%clk 0:00:08]} 69. Kxe7 {[%clk 0:00:34]}  Ke2 {[%clk 0:00:09]} 70. Bg5 {[%clk 0:00:33]}  d2 {[%clk 0:00:08]} 71. Bxd2 {[%clk 0:00:32]}  Kxd2 {[%clk 0:00:09]} 72. Kf6 {[%clk 0:00:33]}  g5 {[%clk 0:00:10]} 73. Kxg5 {[%clk 0:00:33]} 1/2-1/2


[Site "https://www.chess.com"]

[Event "Titled Tuesday Blitz February 07 Late 2023"]
[White "Crevatin, Leo"]
[Black "Osmonbekov, Talaibek"]
[WhiteFideId "1726307"]
[BlackFideId "2017253"]
[WhiteElo "2292"]
[BlackElo "2137"]
[Result "1-0"]
[Round "01"]
[TimeControl "180+2"]
[Date "2023.02.07"]
[WhiteClock "0:01:35"]
[BlackClock "0:01:03"]

1. e4 {[%clk 0:02:59]}  c5 {[%clk 0:02:58]} 2. c3 {[%clk 0:02:58]}  d5 {[%clk 0:02:57]} 3. exd5 {[%clk 0:02:57]}  Qxd5 {[%clk 0:02:58]} 4. Nf3 {[%clk 0:02:58]}  e5 {[%clk 0:02:55]} 5. Bb5+ {[%clk 0:02:56]}  Bd7 {[%clk 0:02:54]} 6. Qe2 {[%clk 0:02:49]}  Bd6 {[%clk 0:02:38]} 7. Bc4 {[%clk 0:02:33]}  Qc6 {[%clk 0:02:33]} 8. Nxe5 {[%clk 0:02:33]}  Bxe5 {[%clk 0:02:33]} 9. Qxe5+ {[%clk 0:02:32]}  Ne7 {[%clk 0:02:33]} 10. O-O {[%clk 0:02:29]}  f6 {[%clk 0:02:24]} 11. Qh5+ {[%clk 0:02:25]}  Ng6 {[%clk 0:02:17]} 12. Re1+ {[%clk 0:02:23]}  Kf8 {[%clk 0:02:17]} 13. d3 {[%clk 0:02:20]}  Qd6 {[%clk 0:02:12]} 14. Be3 {[%clk 0:02:16]}  b6 {[%clk 0:02:06]} 15. Nd2 {[%clk 0:02:15]}  Nc6 {[%clk 0:01:55]} 16. Ne4 {[%clk 0:02:14]}  Qe5 {[%clk 0:01:54]} 17. Qe2 {[%clk 0:01:56]}  Re8 {[%clk 0:01:44]} 18. Ng3 {[%clk 0:01:49]}  h5 {[%clk 0:01:36]} 19. Qc2 {[%clk 0:01:41]}  h4 {[%clk 0:01:31]} 20. d4 {[%clk 0:01:37]}  cxd4 {[%clk 0:01:03]} 21. Qxg6 {[%clk 0:01:36]}  hxg3 {[%clk 0:01:03]} 22. Qf7# {[%clk 0:01:35]} 1-0


[Site "https://www.chess.com"]